[Event "DEN-chT XtraCon 2018-19"]
[Site "Denmark"]
[Date "2019.03.16"]
[Round "8"]
[White "Rosenkilde, Alexander"]
[Black "Ostergaard, Jens"]
[Result "0-1"]
[ECO "A40"]
[WhiteElo "2253"]
[BlackElo "2206"]
[Annotator "NA"]
[PlyCount "92"]
[EventDate "2018.10.27"]
[EventType "team-tourn"]
[EventCountry "DEN"]
[SourceTitle "playchess.com"]
[Source "ChessBase"]
[SourceQuality "1"]
[TimeControl "40/5400+30:1800+30"]

1. d4 {[%emt 0:00:00]} Nf6 {[%emt 0:00:00]} 2. c4 {[%emt 0:00:00]} e6 {[%emt 0:00:01]} 3. g3 {[%emt 0:00:00]} d5 {[%emt 0:00:24]} 4. Nf3 {[%emt 0:00:00]} Bb4+ {[%emt 0:00:48]} 5. Bd2 {[%emt 0:00:06]} Bd6 {[%emt 0:00:46]} (5... Be7 6. Bg2 O-O 7. O-O c6 8. Qc2 Nbd7 9. Bf4 b6 10. Rd1 Ba6 11. cxd5 cxd5 12. Ne5 Nxe5 13. dxe5 Ng4 14. Bf3 f5 15. exf6 Nxf6 16. Qa4 Bb7 17. Nd2 Qe8 18. Qxe8 Rfxe8 {½-½ (29) Giri,A (2783)-Ding,L (2813) Wijk aan Zee 2019}) 6. Bg2 {[%emt 0:00:32] E01: Catalan: Early deviations} O-O {[%emt 0:00:27]} 7. O-O {[%emt 0:00:41]} c6 {[%emt 0:01:00]} 8. Qc2 {[%emt 0:01:01]} b6 {[%emt 0:04:04]} 9. Bg5 {[%emt 0:06:57]} h6 {[%emt 0:09:11]} 10. Bxf6 {[%emt 0:04:51]} Qxf6 {[%emt 0:00:06]} 11. Nbd2 {[%emt 0:00:49]} Ba6 $146 {[%emt 0:06:37]} ({Predecessor:} 11... Rd8 12. Rfd1 Bb7 {0-1 (32) Thiyasara,K (1857)-Amarasinghe,A (1982) Colombo 2017}) 12. e4 {[%emt 0:02:48]} Qd8 {[%emt 0:08:54]} 13. Rfd1 {[%emt 0:11:09]} Bb7 {[%emt 0:15:14]} 14. Rac1 {[%emt 0:07:27]} Nd7 {[%emt 0:00:44]} 15. e5 {[%emt 0:04:34]} Be7 {[%emt 0:01:15]} 16. cxd5 {[%emt 0:00:12]} cxd5 {[%emt 0:00:58]} 17. Bf1 {[%emt 0:08:16]} a6 {[%emt 0:02:29]} 18. Qb3 {[%emt 0:06:36]} b5 {[%emt 0:03:44]} 19. a4 {[%emt 0:09:30]} b4 {[%emt 0:00:31]} 20. Bd3 {[%emt 0:01:54]} a5 {[%emt 0:08:25]} 21. Bb1 {[%emt 0:01:03]} Ba6 {[%emt 0:02:03]} 22. Qc2 {[%emt 0:00:25]} g6 {[%emt 0:00:09]} 23. Nf1 {[%emt 0:01:10]} Kg7 {[%emt 0:07:56]} 24. b3 {[%emt 0:03:03]} Rc8 {[%emt 0:03:10]} 25. Qd2 {[%emt 0:00:17]} Qb6 {[%emt 0:02:13]} 26. Ne3 {[%emt 0:00:30]} Rc3 {[%emt 0:01:53]} 27. h4 {[%emt 0:15:32]} h5 {[%emt 0:04:40]} 28. g4 {[%emt 0:10:10]} Rh8 {[%emt 0:04:07]} 29. Rxc3 {[%emt 0:01:55]} bxc3 {[%emt 0:00:07]} 30. Qxc3 {[%emt 0:00:10]} Be2 {[%emt 0:02:19]} 31. Nh2 {[%emt 0:02:43]} Bxd1 {[%emt 0:00:21]} 32. Nxd1 {[%emt 0:00:03]} hxg4 {[%emt 0:00:35]} 33. Nxg4 {[%emt 0:00:22]} Rxh4 {[%emt 0:00:31]} 34. Nde3 {[%emt 0:01:06]} Qb4 {[%emt 0:02:12]} 35. Qxb4 {[%emt 0:00:49]} Bxb4 {[%emt 0:00:07]} 36. f3 {[%emt 0:00:47]} Bc3 {[%emt 0:01:30]} 37. Nc2 {[%emt 0:00:16]} f5 {[%emt 0:01:27]} 38. exf6+ {[%emt 0:00:14]} Nxf6 {[%emt 0:00:07]} 39. Ne5 {[%emt 0:00:46]} Rxd4 {[%emt 0:00:58]} 40. Ne3 {[%emt 0:00:37]} Rd2 {[%emt 0:00:41]} 41. Nc6 {[%emt 0:03:23]} d4 {[%emt 0:00:53]} 42. Nf1 {[%emt 0:00:26]} Rb2 {[%emt 0:00:44]} 43. Bd3 {[%emt 0:00:18]} Nd5 {[%emt 0:03:17]} 44. Ng3 {[%emt 0:02:44]} Nf4 {[%emt 0:01:01]} 45. Bf1 {[%emt 0:00:37]} d3 $19 {[%emt 0:01:14]} 46. Ne4 {[%emt 0:00:06]} Bf6 {[%emt 0:01:32]} 0-1

[Event "DEN-chT XtraCon 2018-19"]
[Site "Denmark"]
[Date "2019.03.16"]
[Round "8"]
[White "Matthiesen, Martin"]
[Black "Rostgaard, Tobias Valentin"]
[Result "0-1"]
[ECO "E11"]
[WhiteElo "2251"]
[BlackElo "2388"]
[Annotator "NA"]
[PlyCount "102"]
[EventDate "2018.10.27"]
[EventType "team-tourn"]
[EventCountry "DEN"]
[SourceTitle "playchess.com"]
[Source "ChessBase"]
[SourceQuality "1"]
[TimeControl "40/5400+30:1800+30"]

1. d4 {[%emt 0:00:00]} Nf6 {[%emt 0:00:00]} 2. c4 {[%emt 0:00:00]} e6 {[%emt 0:00:00]} 3. Nf3 {[%emt 0:00:00]} Bb4+ {[%emt 0:00:00]} 4. Nbd2 {[%emt 0:00:20]} O-O {[%emt 0:00:09]} 5. a3 {[%emt 0:00:22]} Be7 {[%emt 0:00:06]} 6. e4 {[%emt 0:00:38]} d6 {[%emt 0:00:05] E11: Bogo-Indian} (6... d5 7. e5 Nfd7 8. Bd3 c5 9. h4 g6 10. O-O Nc6 11. Nb3 dxc4 12. Bxc4 cxd4 13. Re1 a5 14. Bh6 Re8 15. Rc1 Nb6 {1-0 (39) Ding,L (2804)-Saric,I (2689) Batumi 2018}) 7. Bd3 {[%emt 0:01:13]} c5 {[%emt 0:00:18]} 8. d5 {[%emt 0:00:44]} Nbd7 {[%emt 0:00:18]} 9. h3 {[%emt 0:06:14]} e5 {[%emt 0:00:19]} 10. g4 {[%emt 0:10:13]} Re8 {[%emt 0:01:57]} 11. Nf1 {[%emt 0:01:02]} Nf8 {[%emt 0:01:09]} 12. Ng3 $146 {[%emt 0:09:55]} ({Predecessor:} 12. Be3 Ng6 13. Qd2 Bf8 14. Ng3 b5 15. b3 Rb8 16. Kf1 bxc4 17. bxc4 Rb3 18. Be2 Rb2 19. Qc1 Qb6 20. g5 Nd7 {1-0 (20) Brink,B (2339)-Minko,V (2411) Barcelona 2017}) 12... Ng6 {[%emt 0:01:12]} 13. g5 {[%emt 0:11:58]} Nd7 {[%emt 0:00:06]} 14. Nh5 {[%emt 0:02:37]} a6 {[%emt 0:08:00]} 15. Kf1 {[%emt 0:04:55]} Ndf8 {[%emt 0:02:26]} 16. a4 {[%emt 0:07:58]} Bd7 {[%emt 0:00:10]} 17. Kg2 {[%emt 0:09:58]} f6 {[%emt 0:06:36]} 18. gxf6 $1 {[%emt 0:00:40]} Bxf6 {[%emt 0:00:06]} 19. Kh2 {[%emt 0:01:36]} Nf4 {[%emt 0:04:07]} 20. Nxf4 {[%emt 0:10:35]} exf4 {[%emt 0:00:06]} 21. Bxf4 {[%emt 0:00:19]} Ng6 {[%emt 0:00:52]} 22. Bg3 $1 {[%emt 0:01:50]} Bxb2 {[%emt 0:00:42]} 23. Rb1 {[%emt 0:01:46]} Bf6 {[%emt 0:00:16]} ({Black should try} 23... Qf6 $11) 24. Bxd6 {[%emt 0:10:11]} Bxa4 {[%emt 0:00:48]} 25. Qxa4 {[%emt 0:00:16]} Qxd6+ {[%emt 0:00:07]} 26. Kg1 {[%emt 0:00:12]} Nf4 {[%emt 0:02:12]} 27. Qd1 {[%emt 0:02:14]} b5 {[%emt 0:02:15]} 28. cxb5 {[%emt 0:01:34]} axb5 {[%emt 0:00:07]} 29. Rxb5 {[%emt 0:00:35]} Ra1 {[%emt 0:00:25]} 30. Rb1 {[%emt 0:02:05]} Rea8 {[%emt 0:00:06]} 31. Bc2 {[%emt 0:01:27]} Rxb1 {[%emt 0:04:21]} 32. Bxb1 {[%emt 0:00:07]} Ra1 {[%emt 0:00:57]} 33. Kh2 {[%emt 0:01:25]} Be5 {[%emt 0:07:27]} 34. Nxe5 {[%emt 0:00:54]} Qxe5 {[%emt 0:00:06]} 35. Qg4 $17 {[%emt 0:00:20]} Nxd5+ {[%emt 0:06:31]} 36. Kg2 {[%emt 0:00:58]} Nf4+ {[%emt 0:00:24]} 37. Kh2 {[%emt 0:00:12]} Ra3 {[%emt 0:09:41]} 38. Qc8+ {[%emt 0:00:23]} Kf7 {[%emt 0:00:04]} 39. Qd7+ {[%emt 0:00:52]} Kg6 {[%emt 0:02:12]} 40. Qf5+ {[%emt 0:00:31]} Qxf5 {[%emt 0:00:07]} 41. exf5+ {[%emt 0:30:12]} Kf6 {[%emt 0:30:19]} 42. Rd1 {[%emt 0:00:00]} Rxh3+ {[%emt 0:00:00]} 43. Kg1 {[%emt 0:00:00]} Rc3 {[%emt 0:00:00]} 44. Rd6+ {[%emt 0:00:00]} Ke5 {[%emt 0:00:00]} 45. Rb6 {[%emt 0:00:00]} h5 {[%emt 0:00:00]} 46. Kh2 {[%emt 0:00:00]} Rc4 {[%emt 0:00:00]} 47. Rb7 {[%emt 0:00:00]} Rb4 {[%emt 0:00:00]} 48. Re7+ {[%emt 0:00:00]} Kf6 {[%emt 0:00:00]} 49. Re1 {[%emt 0:00:00]} h4 {[%emt 0:00:00]} 50. f3 {[%emt 0:00:00]} Rb2+ {[%emt 0:00:00]} 51. Kh1 {[%emt 0:00:00]} Ne2 {[%emt 0:00:00]} 0-1

[Event "DEN-chT XtraCon 2018-19"]
[Site "Denmark"]
[Date "2019.03.16"]
[Round "8"]
[White "Aaes Nielsen, Lars"]
[Black "Firooznia, Farzam"]
[Result "1-0"]
[ECO "B27"]
[WhiteElo "2229"]
[BlackElo "2104"]
[Annotator "NA"]
[PlyCount "57"]
[EventDate "2018.10.27"]
[EventType "team-tourn"]
[EventCountry "DEN"]
[SourceTitle "playchess.com"]
[Source "ChessBase"]
[SourceQuality "1"]
[TimeControl "40/5400+30:1800+30"]

1. e4 {[%emt 0:00:00]} c5 {[%emt 0:00:00]} 2. Nf3 {[%emt 0:00:00]} g6 {[%emt 0:00:00]} 3. c3 {[%emt 0:00:00]} Bg7 {[%emt 0:00:21]} 4. d4 {[%emt 0:00:00]} cxd4 {[%emt 0:00:15]} 5. cxd4 {[%emt 0:00:00]} d5 {[%emt 0:00:07]} 6. exd5 {[%emt 0:02:47]} Nf6 {[%emt 0:00:11]} 7. Bb5+ {[%emt 0:01:18]} Nbd7 {[%emt 0:01:19]} 8. d6 {[%emt 0:02:23]} O-O {[%emt 0:00:32]} 9. O-O {[%emt 0:02:15]} exd6 {[%emt 0:01:02]} 10. Nc3 {[%emt 0:00:44]} a6 {[%emt 0:01:01] B10: Caro-Kann: 2 d3 and 2 c4} 11. Bd3 {[%emt 0:00:54]} Nb6 {[%emt 0:05:11]} (11... b5 12. a4 bxa4 13. Rxa4 Qb6 14. Ra2 Bb7 15. Na4 Qa7 16. Be2 Nd5 17. Nc3 N7f6 18. Bd2 {0-1 (52) Azarov,S (2583)-Gashimov,V (2658) Moscow 2007}) 12. h3 {[%emt 0:01:12]} Bd7 $146 {[%emt 0:04:49]} ({Predecessor:} 12... Be6 13. Re1 Qd7 {½-½ (13) Lukovnikov,A (2270)-Uryupin,I (2232) Tambov 2015}) 13. Bg5 {[%emt 0:02:26]} h6 {[%emt 0:00:47]} 14. Bh4 {[%emt 0:02:44]} Bc6 {[%emt 0:02:29]} 15. Re1 {[%emt 0:01:42]} Nbd5 {[%emt 0:11:10]} 16. Bg3 {[%emt 0:22:21]} Qd7 {[%emt 0:10:43]} 17. Rc1 {[%emt 0:08:46]} Rfe8 {[%emt 0:03:29]} 18. Bb1 {[%emt 0:06:03]} Rxe1+ {[%emt 0:01:28]} 19. Nxe1 {[%emt 0:01:20]} Re8 {[%emt 0:04:01]} 20. Qb3 {[%emt 0:06:55]} Re6 {[%emt 0:12:44]} 21. Nd3 {[%emt 0:04:13]} Qe7 {[%emt 0:02:17]} 22. a3 {[%emt 0:00:25]} Nxc3 {[%emt 0:11:53]} 23. bxc3 {[%emt 0:00:59]} Nh5 {[%emt 0:00:12]} 24. d5 {[%emt 0:05:55]} Nxg3 {[%emt 0:00:16]} 25. fxg3 {[%emt 0:00:18]} Re2 {[%emt 0:02:19]} 26. dxc6 {[%emt 0:02:01]} Qe3+ {[%emt 0:00:16]} 27. Kh2 {[%emt 0:01:14]} Be5 {[%emt 0:05:25]} 28. Nxe5 {[%emt 0:01:01]} Qxe5 {[%emt 0:01:50]} 29. Rf1 $18 {[%emt 0:01:42]} 1-0

[Event "DEN-chT XtraCon 2018-19"]
[Site "Denmark"]
[Date "2019.03.16"]
[Round "8"]
[White "Jakslan, Tim"]
[Black "Rathlev, Jacob"]
[Result "1/2-1/2"]
[ECO "A14"]
[WhiteElo "2228"]
[BlackElo "2228"]
[Annotator "NA"]
[PlyCount "65"]
[EventDate "2018.10.27"]
[EventType "team-tourn"]
[EventCountry "DEN"]
[SourceTitle "playchess.com"]
[Source "ChessBase"]
[SourceQuality "1"]
[TimeControl "40/5400+30:1800+30"]

1. Nf3 {[%emt 0:00:00]} d5 {[%emt 0:00:00]} 2. c4 {[%emt 0:00:23]} e6 {[%emt 0:00:00]} 3. g3 {[%emt 0:00:56]} Nf6 {[%emt 0:00:17]} 4. Bg2 {[%emt 0:00:25]} Be7 {[%emt 0:01:00]} 5. O-O {[%emt 0:00:10]} O-O {[%emt 0:00:26]} 6. b3 {[%emt 0:00:29]} b6 {[%emt 0:01:04]} 7. cxd5 {[%emt 0:01:59]} exd5 {[%emt 0:02:57]} 8. Bb2 {[%emt 0:04:24]} Bb7 {[%emt 0:00:31]} 9. d4 {[%emt 0:01:32]} c5 {[%emt 0:02:38]} 10. Nc3 {[%emt 0:05:39]} Nc6 {[%emt 0:04:50]} 11. Rc1 {[%emt 0:05:16]} Rc8 {[%emt 0:01:53]} 12. e3 {[%emt 0:10:27]} Qc7 {[%emt 0:09:28]} 13. dxc5 {[%emt 0:13:41]} bxc5 {[%emt 0:00:40]} 14. Nh4 {[%emt 0:09:57]} d4 {[%emt 0:27:11]} 15. Na4 {[%emt 0:06:23]} Ba6 {[%emt 0:11:44]} 16. exd4 {[%emt 0:06:28]} Rfd8 {[%emt 0:06:42]} 17. Nf5 {[%emt 0:07:32]} Bxf1 {[%emt 0:04:49]} 18. Qxf1 $16 {[%emt 0:00:07]} ({Much less strong is} 18. Kxf1 $6 Qd7 $14) 18... Bf8 {[%emt 0:06:57]} 19. dxc5 {[%emt 0:06:26]} Rd2 {[%emt 0:06:09]} 20. Qc4 {[%emt 0:08:48]} Qd7 {[%emt 0:07:22]} 21. Bh3 {[%emt 0:03:31]} Rd1+ {[%emt 0:00:40]} 22. Kg2 {[%emt 0:00:13]} Rxc1 {[%emt 0:00:35]} 23. Bxc1 {[%emt 0:00:45]} Qb7 {[%emt 0:02:00]} 24. f3 {[%emt 0:02:51]} Rd8 {[%emt 0:00:56]} 25. Bf4 {[%emt 0:00:43]} Rd1 {[%emt 0:00:35]} 26. Nc3 {[%emt 0:00:29]} Ra1 {[%emt 0:00:47]} 27. Nd6 {[%emt 0:00:16]} Qe7 {[%emt 0:00:19]} 28. Nxf7 {[%emt 0:01:34]} Na5 {[%emt 0:00:50]} 29. Nh6+ {[%emt 0:02:14]} Kh8 {[%emt 0:00:02]} 30. Nf7+ Kg8 31. Nh6+ {[%emt 0:01:09]} Kh8 {[%emt 0:00:01]} 32. Nf7+ {[%emt 0:00:31]} Kg8 {[%emt 0:00:01]} 33. Nh6+ {[%emt 0:00:07]} 1/2-1/2

[Event "DEN-chT XtraCon 2018-19"]
[Site "Denmark"]
[Date "2019.03.16"]
[Round "8"]
[White "Seegert, Kristian"]
[Black "Ramsdal, Jens Albert"]
[Result "1/2-1/2"]
[ECO "C41"]
[WhiteElo "2227"]
[BlackElo "2235"]
[Annotator "NA"]
[PlyCount "101"]
[EventDate "2018.10.27"]
[EventType "team-tourn"]
[EventCountry "DEN"]
[SourceTitle "playchess.com"]
[Source "ChessBase"]
[SourceQuality "1"]
[TimeControl "40/5400+30:1800+30"]

1. e4 {[%emt 0:00:00]} e5 {[%emt 0:00:23]} 2. Nf3 {[%emt 0:00:00]} d6 {[%emt 0:00:10]} 3. d4 {[%emt 0:00:41]} exd4 {[%emt 0:00:05]} 4. Nxd4 {[%emt 0:00:09]} Nf6 {[%emt 0:00:03]} 5. Nc3 {[%emt 0:01:14]} Be7 {[%emt 0:00:07]} 6. Bd3 {[%emt 0:05:51]} O-O {[%emt 0:01:22]} 7. O-O {[%emt 0:00:26]} c5 {[%emt 0:01:32]} 8. Nde2 {[%emt 0:01:52]} Nc6 {[%emt 0:03:17]} 9. Nf4 {[%emt 0:02:29] C41: Philidor Defence} a6 {[%emt 0:06:40]} (9... Re8 10. Nfd5 Nxd5 11. Nxd5 Bf6 12. c3 Rb8 13. a4 a6 14. Qh5 Ne5 15. Bc2 Bg4 16. Nxf6+ Qxf6 {½-½ (27) Ruiz Castillo,J (2391)-Shabalov,A (2528) Las Vegas 2013}) 10. a4 {[%emt 0:00:31]} Ne5 {[%emt 0:04:31]} 11. b3 {[%emt 0:22:41]} Bd7 $146 {[%emt 0:08:51]} ({Predecessor:} 11... Re8 12. Nfd5 Nxd5 13. Nxd5 Bf8 14. f4 Nxd3 15. Qxd3 Bd7 16. Bb2 Bc6 {½-½ (40) Robinson,A-Hanham,J New York 1912}) 12. Bb2 {[%emt 0:04:49]} Bc6 {[%emt 0:08:25]} 13. Re1 {[%emt 0:02:19]} Rb8 {[%emt 0:21:16]} 14. a5 {[%emt 0:09:02]} Ne8 {[%emt 0:00:05]} 15. Nfd5 {[%emt 0:04:36]} Nxd3 {[%emt 0:09:06]} 16. Nxe7+ {[%emt 0:08:24]} Qxe7 {[%emt 0:00:02]} 17. Qxd3 {[%emt 0:00:09]} Qg5 {[%emt 0:05:31]} 18. Re3 {[%emt 0:17:20]} Rd8 {[%emt 0:06:55]} 19. Rd1 {[%emt 0:02:52]} f5 {[%emt 0:05:20]} 20. Qc4+ {[%emt 0:00:40]} Kh8 {[%emt 0:00:39]} 21. Rg3 {[%emt 0:01:44]} Qh5 {[%emt 0:00:10]} 22. Re1 {[%emt 0:03:11]} Nf6 {[%emt 0:05:27]} 23. Nd5 {[%emt 0:03:51]} Bxd5 {[%emt 0:02:47]} 24. exd5 {[%emt 0:00:04]} Rde8 {[%emt 0:00:11]} 25. Rf1 {[%emt 0:05:11]} Re7 {[%emt 0:03:10]} 26. Qf4 {[%emt 0:00:46]} Ne4 {[%emt 0:04:36]} 27. Rh3 {[%emt 0:01:12]} Qg5 {[%emt 0:00:02]} 28. Qxg5 {[%emt 0:00:44]} Nxg5 {[%emt 0:00:01]} 29. Re3 {[%emt 0:00:53]} Rxe3 {[%emt 0:00:09]} 30. fxe3 {[%emt 0:00:03]} Kg8 {[%emt 0:00:22]} 31. Rf4 {[%emt 0:00:52]} g6 {[%emt 0:00:11]} 32. Kf2 {[%emt 0:00:25]} Re8 {[%emt 0:00:26]} 33. Ke2 {[%emt 0:00:34]} Re4 {[%emt 0:01:45]} 34. h4 {[%emt 0:00:49]} Rxf4 {[%emt 0:00:08]} 35. exf4 {[%emt 0:00:09]} Ne4 {[%emt 0:00:11]} 36. Kd3 {[%emt 0:00:32]} Kf7 {[%emt 0:00:16]} 37. b4 {[%emt 0:00:48]} cxb4 {[%emt 0:01:22]} 38. Kc4 {[%emt 0:00:12]} Ng3 {[%emt 0:00:06]} 39. Bc1 {[%emt 0:00:49]} Ne4 {[%emt 0:02:07]} 40. Kxb4 {[%emt 0:00:22]} Ke7 {[%emt 0:00:52]} 41. Be3 {[%emt 0:02:59]} Kd7 {[%emt 0:01:16]} 42. c4 {[%emt 0:01:00]} Nf6 {[%emt 0:05:47]} 43. Bd4 {[%emt 0:02:51]} Nh5 {[%emt 0:00:08]} 44. Be3 {[%emt 0:00:35]} Nf6 {[%emt 0:00:03]} 45. Kc3 {[%emt 0:22:16]} Kc7 {[%emt 0:01:03]} 46. Bb6+ {[%emt 0:00:16]} Kd7 {[%emt 0:02:22]} 47. Kd4 {[%emt 0:00:20]} Nh5 {[%emt 0:00:07]} 48. Ke3 {[%emt 0:00:32]} Nf6 {[%emt 0:00:21]} 49. Kd4 $11 {[%emt 0:00:10]} Nh5 {[%emt 0:05:04]} 50. Ke3 {[%emt 0:00:03]} Nf6 {[%emt 0:03:05]} 51. Kd4 {[%emt 0:04:28]} 1/2-1/2

[Event "DEN-chT XtraCon 2018-19"]
[Site "Denmark"]
[Date "2019.03.16"]
[Round "8"]
[White "Kristensen, Bjarke Hautop"]
[Black "Brynell, Stellan"]
[Result "0-1"]
[ECO "A05"]
[WhiteElo "2223"]
[BlackElo "2403"]
[Annotator "ChessBase"]
[PlyCount "60"]
[EventDate "2018.10.27"]
[EventType "team-tourn"]
[EventCountry "DEN"]
[SourceTitle "playchess.com"]
[Source "ChessBase"]
[SourceQuality "1"]
[TimeControl "40/5400+30:1800+30"]

1. Nf3 {[%emt 0:00:00]} Nf6 {[%emt 0:00:00]} 2. c4 {[%emt 0:00:00]} e6 {[%emt 0:00:00]} 3. Nc3 {[%emt 0:00:00]} d5 {[%emt 0:00:31]} 4. e3 {[%emt 0:00:00]} Be7 {[%emt 0:01:03]} 5. b3 {[%emt 0:00:01]} O-O {[%emt 0:00:22]} 6. Bb2 {[%emt 0:00:04]} c5 {[%emt 0:00:17]} 7. cxd5 {[%emt 0:00:11]} exd5 {[%emt 0:00:22]} 8. d4 {[%emt 0:00:04]} Nc6 {[%emt 0:00:27]} 9. Be2 {[%emt 0:00:05]} Ne4 {[%emt 0:01:49]} 10. O-O {[%emt 0:01:10]} Bf6 {[%emt 0:00:36]} 11. Na4 {[%emt 0:02:49]} Bg4 {[%emt 0:03:23]} 12. dxc5 {[%emt 0:00:57]} Bxb2 {[%emt 0:03:08]} 13. Nxb2 {[%emt 0:00:05]} Nc3 {[%emt 0:00:39]} 14. Qc2 {[%emt 0:00:13]} Nxe2+ {[%emt 0:00:11]} 15. Qxe2 {[%emt 0:00:06]} Ne5 {[%emt 0:00:23]} 16. Nd3 {[%emt 0:00:29]} Nxf3+ {[%emt 0:01:50]} 17. gxf3 {[%emt 0:00:07]} Bh3 {[%emt 0:00:05]} 18. f4 {[%emt 0:00:26]} Qf6 {[%emt 0:15:05]} 19. Qh5 {[%emt 0:11:03]} Bxf1 {[%emt 0:00:51]} 20. Rxf1 {[%emt 0:00:05]} Rfe8 {[%emt 0:24:11]} 21. Ne5 {[%emt 0:04:28]} Rad8 {[%emt 0:15:30]} 22. Rd1 {[%emt 0:09:03]} d4 {[%emt 0:01:59]} 23. Ng4 {[%emt 0:01:14]} Qc6 {[%emt 0:00:11]} 24. Ne5 {[%emt 0:00:33]} Qf6 {[%emt 0:00:13]} 25. Ng4 {[%emt 0:00:14]} Qe7 {[%emt 0:01:40]} 26. exd4 {[%emt 0:03:29]} Qe2 {[%emt 0:00:22]} 27. Rf1 {[%emt 0:03:23]} Rxd4 {[%emt 0:00:35]} 28. Qg5 {[%emt 0:00:17]} Re6 {[%emt 0:03:09]} 29. h3 {[%emt 0:10:24]} h6 {[%emt 0:03:38]} 30. Qf5 {[%emt 0:00:40]} Qf3 {[%emt 0:02:45]} 0-1

[Event "DEN-chT XtraCon 2018-19"]
[Site "Denmark"]
[Date "2019.03.16"]
[Round "8"]
[White "Christensen, Thomas"]
[Black "Vesterli, Michael E."]
[Result "0-1"]
[ECO "E61"]
[WhiteElo "2207"]
[BlackElo "2204"]
[Annotator "NA"]
[PlyCount "80"]
[EventDate "2018.10.27"]
[EventType "team-tourn"]
[EventCountry "DEN"]
[SourceTitle "playchess.com"]
[Source "ChessBase"]
[SourceQuality "1"]
[TimeControl "40/5400+30:1800+30"]

1. d4 {[%emt 0:00:00]} Nf6 {[%emt 0:00:00]} 2. c4 {[%emt 0:01:17]} g6 {[%emt 0:00:00]} 3. Nc3 {[%emt 0:00:09]} Bg7 {[%emt 0:00:00]} 4. Nf3 {[%emt 0:00:26]} O-O {[%emt 0:00:12]} 5. Bg5 {[%emt 0:01:43]} c5 {[%emt 0:01:47]} 6. d5 {[%emt 0:02:04]} d6 {[%emt 0:01:03]} 7. e4 {[%emt 0:07:48]} e6 {[%emt 0:02:04]} 8. Bd3 {[%emt 0:09:06] LiveBook: 3 Games} exd5 {[%emt 0:00:35]} 9. cxd5 {[%emt 0:00:17]} a6 {[%emt 0:02:37]} 10. a4 {[%emt 0:01:02]} Bg4 {[%emt 0:05:21]} 11. h3 {[%emt 0:05:23]} Bxf3 {[%emt 0:00:21]} 12. Qxf3 {[%emt 0:00:06]} Nbd7 {[%emt 0:00:14]} 13. Qe2 {[%emt 0:08:03]} Qc7 {[%emt 0:04:21]} 14. O-O {[%emt 0:02:26]} Rae8 {[%emt 0:02:55]} 15. Qc2 {[%emt 0:07:30]} c4 {[%emt 0:02:57]} 16. Be2 {[%emt 0:00:04]} Nc5 {[%emt 0:00:57]} 17. f3 {[%emt 0:06:04]} Nh5 {[%emt 0:04:55]} 18. Bxc4 {[%emt 0:06:33]} Bd4+ {[%emt 0:10:30]} 19. Kh2 {[%emt 0:00:37]} Be5+ {[%emt 0:06:37]} 20. Kg1 {[%emt 0:02:42]} Bd4+ {[%emt 0:00:28]} 21. Kh2 {[%emt 0:00:14]} Be5+ {[%emt 0:00:04]} 22. Kg1 {[%emt 0:00:48]} Ng3 $15 {[%emt 0:00:51]} 23. Rfe1 {[%emt 0:02:11]} f5 {[%emt 0:04:58]} 24. Bd3 {[%emt 0:06:50]} Nxd3 {[%emt 0:08:07]} 25. Qxd3 {[%emt 0:00:10]} Qb6+ {[%emt 0:01:08]} 26. Be3 {[%emt 0:01:00]} Qxb2 {[%emt 0:00:11]} 27. Rac1 {[%emt 0:05:07]} Qb4 $17 {[%emt 0:05:51]} 28. exf5 {[%emt 0:02:42]} Nxf5 {[%emt 0:00:34]} 29. Bf2 {[%emt 0:01:00]} Qf4 {[%emt 0:01:33]} 30. Ne2 {[%emt 0:02:37]} Qh2+ {[%emt 0:00:54]} 31. Kf1 {[%emt 0:00:09]} Qh1+ {[%emt 0:05:27]} 32. Ng1 {[%emt 0:02:43]} Bh2 {[%emt 0:00:56]} 33. Bb6 {[%emt 0:01:55]} Nh4 {[%emt 0:03:53]} 34. Re2 {[%emt 0:04:26]} Bxg1 {[%emt 0:00:17]} 35. Bxg1 {[%emt 0:01:46]} Nxf3 {[%emt 0:00:07]} 36. gxf3 {[%emt 0:00:54]} Rxf3+ {[%emt 0:00:08]} 37. Qxf3 {[%emt 0:00:39]} Qxf3+ {[%emt 0:00:06]} 38. Rf2 {[%emt 0:00:11]} Qxh3+ {[%emt 0:00:25]} 39. Rg2 {[%emt 0:00:15]} Qd3+ {[%emt 0:00:06]} 40. Re2 {[%emt 0:00:40]} Qxe2# {[%emt 0:00:06] Ke1} 0-1